[Event "2nd Bieszczady Chess-ch A 2022"]
[Site "Bystre"]
[Date "2022.07.24"]
[Round "9.6"]
[White "Kasperek, Ryszard"]
[Black "Kucharski, Bartlomiej"]
[Result "1-0"]
[ECO "B06"]
[WhiteElo "2058"]
[BlackElo "2003"]
[Annotator "TA"]
[PlyCount "201"]
[EventDate "2022.07.17"]
[EventCountry "POL"]
[SourceTitle "playchess.com"]
[Source "ChessBase"]
[SourceQuality "1"]
[TimeControl "5400+30"]

{[%evp 11,201,56,61,47,50,64,98,88,108,47,57,33,28,8,61,41,49,38,138,139,284,281,251,228,272,88,71,71,95,63,84,91,203,200,232,214,222,0,0,-3,-25,-9,313,333,325,281,375,368,470,456,415,294,614,611,627,536,574,545,631,618,740,716,838,806,802,692,692,685,678,677,647,30,36,26,26,18,25,23,24,25,23,24,35,33,51,39,51,51,75,79,93,58,66,65,79,47,47,58,66,0,68,55,63,0,1,0,0,0,0,0,0,0,0,0,0,0,0,0,0,0,0,0,0,0,0,0,0,0,0,0,0,0,0,0,0,0,0,0,0,0,0,0,0,0,0,0,0,0,0,0,0,0,0,0,0,0,0,0,0,0,0,0,0,0,0,0,0,0,0,0,0,0,0,0,0,0,27999,27999,27988,27989,27996,27997,27997,27997,27999,27999,27997,27997,27997,27994,27994,27993]} 1. e4 {[%emt 0:02:35]} d6 {[%emt 0:02:23]} 2. d4 {[%emt 0:00:07]} g6 {[%emt 0:00:48]} 3. Nc3 Bg7 4. f4 {[%emt 0:01:48]} a6 {[%emt 0:01:39]} 5. Nf3 {[%emt 0:00:00]} b5 {[%emt 0:00:48]} 6. Bd3 {[%emt 0:00:00]} Bb7 {[%emt 0:02:36]} 7. O-O {[%emt 0:14:39] B06: Modern Defence.} c5 {[%emt 0:13:53]} 8. dxc5 {[%emt 0:08:55]} dxc5 {[%emt 0:03:45]} (8... Nf6) 9. e5 {[%emt 0:00:06] White is better.} Nh6 {[%emt 0:11:10] [#]} 10. a4 $146 {[%emt 0:03:02]} (10. Be4 Qc8 11. Ng5) (10. Be4 $16 Qc8 11. Bxb7 Qxb7 12. Qd5 Qxd5 13. Nxd5) ({Predecessor:} 10. Be4 Nc6 11. Be3 c4 12. Qe1 Nf5 13. Rd1 Qa5 14. Bxf5 gxf5 15. Qg3 O-O 16. Nd5 Qxa2 {1-0 (24) Gelman,A (2410)-Djukic,N (2518) Chess.com INT 2019}) 10... b4 $14 {[%emt 0:12:25]} 11. Be4 {[%emt 0:00:13]} Nc6 {[%emt 0:04:20]} 12. Nd5 {[%emt 0:25:58]} e6 {[%emt 0:28:20]} (12... Na5 $11) 13. Nf6+ {[%emt 0:12:41]} Bxf6 {[%emt 0:01:12]} 14. exf6 {[%emt 0:00:04]} O-O {[%emt 0:01:21] [#]} (14... Na5 $14 15. Bxb7 Nxb7) 15. Ne5 $1 $16 {[%emt 0:03:18]} Na5 {[%emt 0:01:57]} (15... Rc8 $16) 16. Bxb7 $18 {[%emt 0:03:09]} Nxb7 {[%emt 0:00:35]} 17. Qf3 {[%emt 0:02:22]} Nd6 {[%emt 0:02:15] [#]} 18. Rd1 $2 {[%emt 0:11:42]} (18. g4 $1 $18) 18... Nhf5 $16 {[%emt 0:00:52]} 19. c3 {[%emt 0:01:32] 0x0.00208f36d30edp-1022s more active pieces. The black rooks are badly placed.} h5 {[%emt 0:00:42]} ({Not} 19... Qxf6 20. Nd7 Qe7 21. Nxf8 Rxf8 22. g4 $16) 20. Be3 {[%emt 0:00:47]} bxc3 {[%emt 0:01:47]} 21. bxc3 {[%emt 0:00:08]} Qa5 {[%emt 0:03:00]} (21... Qc7 $16) 22. Bf2 $18 {[%emt 0:01:12]} Rfc8 {[%emt 0:02:17]} 23. h3 {[%emt 0:00:10]} h4 {[%emt 0:00:19]} 24. Nc6 $2 {[%emt 0:02:25]} (24. Ra2 $18) 24... Qc7 $11 {[%emt 0:00:39]} 25. Ne7+ {[%emt 0:00:08]} Nxe7 {[%emt 0:00:27]} 26. fxe7 {[%emt 0:00:04]} Qxe7 {[%emt 0:02:31][%mdl 8192] [#]} (26... Nf5 $11) 27. Bxc5 $1 $18 {[%emt 0:00:28][%mdl 576] Deflection} Rxc5 {[%emt 0:00:23]} 28. Qxa8+ {[%emt 0:00:04]} Kg7 {[%emt 0:00:06]} 29. Qxa6 {[%emt 0:01:21]} Ne4 {[%emt 0:00:39]} 30. Qd3 {[%emt 0:01:27]} Nxc3 {[%emt 0:00:47]} 31. Re1 {[%emt 0:01:26]} Qf6 $2 {[%emt 0:00:57]} (31... Qc7 32. Qd4+ Kh7) 32. a5 {[%emt 0:01:17][%cal Ba4a5,Ba5a6,Ba6a7][%mdl 32]} Nd5 {[%emt 0:00:41]} 33. Ra4 {[%emt 0:02:04]} Nxf4 {[%emt 0:00:30]} 34. Qe3 {[%emt 0:00:27][%csl LRc5,LRf4]} Rf5 {[%emt 0:00:47]} 35. a6 {[%emt 0:00:16] a7 is the strong threat.} Qg5 {[%emt 0:00:29][%csl Gf4][%cal Rg5g2]} 36. Ra2 {[%emt 0:01:14] And now a7 would win.} f6 {[%emt 0:00:31]} 37. a7 {[%emt 0:00:34]} Ra5 {[%emt 0:00:27]} 38. Rf2 {[%emt 0:00:42]} Nh5 {[%emt 0:00:38]} 39. Qb6 {[%emt 0:00:48]} Qd5 {[%emt 0:00:24]} 40. Qc7+ {[%emt 0:00:00]} Kh6 {[%emt 0:00:00]} 41. Qe7 $2 {[%emt 0:00:00]} (41. Qc3 $18) 41... e5 $11 {[%emt 0:00:00]} 42. Qf8+ {[%emt 0:00:00]} Kg5 $1 {[%emt 0:00:00]} 43. Qb4 {[%emt 0:00:00] Threatens to win with Rd2. The board is on fire.} Rxa7 {[%emt 0:00:00]} 44. Qg4+ {[%emt 0:00:00]} Kh6 {[%emt 0:00:00]} 45. Qxh4 {[%emt 0:00:00] Black must now prevent Rxf6.} Kg7 {[%emt 0:00:00]} 46. Qb4 {[%emt 0:00:09]} Rb7 {[%emt 0:00:00]} 47. Qc3 {[%emt 0:01:03]} Nf4 {[%emt 0:00:00]} 48. Rd2 {[%emt 0:00:24]} Qb5 {[%emt 0:00:21]} 49. Kh2 {[%emt 0:00:46]} Rd7 {[%emt 0:01:23]} 50. Red1 {[%emt 0:00:56]} Rxd2 {[%emt 0:00:52]} 51. Qc7+ {[%emt 0:01:06]} Kh6 {[%emt 0:01:18]} 52. Rxd2 $14 {[%emt 0:00:00][%mdl 4096] Endgame Strongly threatening Qd6. KQR-KQN} Qb4 {[%emt 0:01:13]} 53. Qd6 {[%emt 0:00:32]} Qxd6 {[%emt 0:01:58]} 54. Rxd6 {[%emt 0:00:01] KR-KN} Kg5 {[%emt 0:00:04]} 55. Kg3 {[%emt 0:00:37]} (55. g3 $1 $14 Ne2 56. Kg2) 55... Nh5+ {[%emt 0:00:52]} (55... f5 $11) 56. Kf3 {[%emt 0:01:01]} f5 {[%emt 0:00:32]} 57. h4+ {[%emt 0:00:03]} (57. g3 $1 $14) 57... Kh6 {[%emt 0:00:23]} 58. g4 {[%emt 0:02:14]} e4+ {[%emt 0:00:16]} 59. Ke3 {[%emt 0:00:01]} fxg4 {[%emt 0:00:22]} 60. Kxe4 {[%emt 0:00:11]} Ng3+ {[%emt 0:00:35]} 61. Kf4 {[%emt 0:00:49]} Nf5 {[%emt 0:00:14]} 62. Ra6 $2 {[%emt 0:00:18][%mdl 8192]} (62. Rb6 $11 g3 63. Kg4) 62... Nxh4 {[%emt 0:01:02][%cal Og4g3]} 63. Kxg4 $2 {[%emt 0:00:04][%mdl 8192]} (63. Ra8 $11 Nf5 64. Kxg4) 63... Nf5 {[%emt 0:00:14]} 64. Re6 $2 {[%emt 0:00:45][%mdl 8192]} (64. Kf4 $11) 64... Nd4 $2 {[%emt 0:00:37][%mdl 8192]} (64... Kg7 $11) 65. Re1 $2 {[%emt 0:00:28][%mdl 8192]} (65. Rb6 $11) 65... Nf5 $2 {[%emt 0:00:38][%mdl 8192]} (65... Kg7 $11) 66. Re6 $2 {[%emt 0:00:55][%mdl 8192]} (66. Rh1+ $11 Kg7 67. Rb1) 66... Nd4 $2 {[%emt 0:00:09][%mdl 8192]} (66... Kg7 $11) 67. Re3 $2 {[%emt 0:00:08][%mdl 8192]} (67. Rb6 $11) 67... Nf5 $2 {[%emt 0:00:19][%mdl 8192]} (67... Kg7 $11) 68. Rh3+ {[%emt 0:00:14]} Kg7 {[%emt 0:00:05]} 69. Kg5 $2 {[%emt 0:00:08][%mdl 8192]} (69. Kf4 $11) 69... Nd6 $2 {[%emt 0:00:18][%mdl 8192]} (69... Nd4 $11) 70. Rd3 $2 {[%emt 0:00:32][%mdl 8192]} (70. Rf3 $11) 70... Nf7+ {[%emt 0:00:06]} 71. Kf4 {[%emt 0:00:12]} Kf6 $2 {[%emt 0:00:42][%mdl 8192]} (71... g5+ $11 72. Kf5 Nh6+ 73. Kxg5 Nf7+ 74. Kf5 Nh6+ 75. Ke6 Kg6) 72. Ra3 $2 {[%emt 0:00:30][%mdl 8192]} (72. Rd4 $11) 72... Kg7 $2 {[%emt 0:00:43][%mdl 8192]} (72... g5+ $11 73. Ke4 Nd6+ 74. Kf3 Nf7) 73. Ra6 $2 {[%emt 0:00:39][%mdl 8192]} (73. Ra5 $11) 73... Kh6 $2 {[%emt 0:00:33][%mdl 8192]} (73... g5+ $11 74. Kf5 Nh6+ 75. Kxg5 Nf7+ 76. Kf4 Nh6) 74. Ke4 $2 {[%emt 0:01:00][%mdl 8192]} (74. Kg4 $11) 74... Kg5 {[%emt 0:00:24]} 75. Rc6 $2 {[%emt 0:01:05][%mdl 8192]} (75. Ra5+ $11 Kg4 76. Rc5) 75... Kh6 $2 {[%emt 0:01:50][%mdl 8192]} (75... Kg4 $11) 76. Rc7 $2 {[%emt 0:00:16][%mdl 8192]} (76. Rf6 $11 Kg7 77. Rc6) 76... Kg7 $2 {[%emt 0:00:07][%mdl 8192]} (76... Nd6+ $11 77. Kf4 Ne8) 77. Kd5 $2 {[%emt 0:00:08][%mdl 8192]} (77. Rb7 $11) 77... Kf6 {[%emt 0:00:07]} 78. Rc8 $2 {[%emt 0:01:29][%mdl 8192]} (78. Rc6+ $11 Kf5 79. Rc7) 78... Ng5 $2 {[%emt 0:01:08][%mdl 8192]} (78... g5 $11) 79. Rf8+ $2 {[%emt 0:00:50][%mdl 8192]} (79. Rc6+ $11 Kf5 80. Rc7) 79... Nf7 {[%emt 0:00:05]} 80. Ra8 $2 {[%emt 0:00:16][%mdl 8192]} (80. Kc4 $11) 80... Kf5 $2 {[%emt 0:00:59][%mdl 8192]} (80... g5 $11) 81. Ra1 $2 {[%emt 0:00:13][%mdl 8192]} (81. Rf8 $11 Kf6 82. Ke4) 81... Kf6 $2 {[%emt 0:00:27][%mdl 8192]} (81... g5 $11) 82. Rf1+ {[%emt 0:00:05]} Kg7 $2 {[%emt 0:00:02][%mdl 8192]} (82... Ke7 $11) 83. Ke6 $2 {[%emt 0:00:12][%mdl 8192]} (83. Ke4 $11) 83... Nd8+ $2 {[%emt 0:00:41][%mdl 8192]} (83... Ng5+ $11 84. Ke7 Ne4) 84. Ke7 $2 {[%emt 0:01:02][%mdl 8192]} (84. Kd7 $11 Nf7 85. Ke6 Ng5+ 86. Ke7) 84... Nc6+ {[%emt 0:00:10]} 85. Kd6 {[%emt 0:01:09]} Nd4 {[%emt 0:00:21]} 86. Rf4 $2 {[%emt 0:00:31][%mdl 8192]} (86. Kc5 $11 Nf5 87. Rf2) 86... Nf5+ {[%emt 0:00:52]} 87. Ke6 $2 {[%emt 0:00:05][%mdl 8192]} (87. Kd5 $11) 87... Kh6 {[%emt 0:01:01]} 88. Kf6 {[%emt 0:00:33]} Kh5 {[%emt 0:00:15]} 89. Rf2 $2 {[%emt 0:00:17][%mdl 8192]} (89. Ra4 $11) 89... Nh4 $2 {[%emt 0:00:38][%mdl 8192]} (89... Kg4 $11) 90. Rf4 $2 {[%emt 0:00:50][%mdl 8192]} (90. Rh2 $11) 90... Nf5 {[%emt 0:00:30]} 91. Rf1 $2 {[%emt 0:00:16][%mdl 8192]} (91. Ra4 $11) 91... Nh4 $2 {[%emt 0:00:09][%mdl 8192]} (91... Ne3 $11 92. Rh1+ Kg4) 92. Rg1 $2 {[%emt 0:00:11][%mdl 8192]} (92. Rh1 $11) 92... Kh6 $2 {[%emt 0:01:02][%mdl 8192]} (92... Nf5 $11) 93. Rg5 $2 {[%emt 0:00:20][%mdl 8192]} (93. Rh1 $11 Kh5 94. Rg1) 93... Kh7 $2 {[%emt 0:00:26][%mdl 8192]} (93... Nf3 $11 94. Rxg6+ Kh5) 94. Rg4 {[%emt 0:00:22] White mates.} Nf5 {[%emt 0:00:22]} 95. Rxg6 {[%emt 0:00:11]} Nh6 {[%emt 0:00:36]} 96. Rg7+ {[%emt 0:00:08]} Kh8 {[%emt 0:00:06]} 97. Kg6 {[%emt 0:00:25]} Ng4 {[%emt 0:00:07]} 98. Re7 {[%emt 0:00:07][%cal Re7e8]} Nh6 99. Rg7 Nf5 100. Rd7 Nh4+ 101. Kg5 {Weighted Error Value: White=0.36/Black=0.38} 1-0

[Event "2nd Bieszczady Chess-ch A 2022"]
[Site "Bystre"]
[Date "2022.07.24"]
[Round "9.7"]
[White "Dzwierzynski, Bartosz"]
[Black "Palacki, Rafal"]
[Result "1/2-1/2"]
[ECO "A43"]
[WhiteElo "2129"]
[BlackElo "1832"]
[Annotator "TA"]
[PlyCount "96"]
[EventDate "2022.07.17"]
[EventCountry "POL"]
[SourceTitle "playchess.com"]
[Source "ChessBase"]
[SourceQuality "1"]
[TimeControl "5400+30"]

{[%evp 12,96,50,57,70,56,66,67,65,68,67,73,93,52,172,141,345,303,345,319,450,252,207,179,168,144,143,-275,-258,-402,-407,-402,-401,-356,-397,-343,-340,-375,-374,-375,-376,-441,-437,-431,-410,-703,-699,-712,-709,-698,-510,-523,-493,-846,-827,-910,-908,-1268,-1133,-1111,-1072,-1174,-1171,-1108,-1121,-1074,-1047,-927,-801,-757,-720,-1030,-1029,-937,0,0,0,0,0,0,0,0,0,0,0,0,0]} 1. d4 {[%emt 0:00:04]} g6 {[%emt 0:04:11]} 2. c4 {[%emt 0:00:04]} Bg7 {[%emt 0:00:04]} 3. Nc3 {[%emt 0:00:04]} c5 {[%emt 0:00:03]} 4. d5 {[%emt 0:00:07]} Bxc3+ {[%emt 0:00:04]} 5. bxc3 {[%emt 0:00:04]} f5 {[%emt 0:00:04]} 6. e4 {[%emt 0:00:55]} fxe4 {[%emt 0:00:09]} 7. f3 {[%emt 0:00:04]} e5 $1 {[%emt 0:00:03] The main line 7...e5 scores better than 7...Nf6. A40: Unusual replies to 1 d4.} 8. Qe2 {[%emt 0:09:55]} Qa5 {[%emt 0:03:11]} 9. Bd2 {[%emt 0:00:42]} d6 {[%emt 0:02:21] White is slightly better.} 10. fxe4 {[%emt 0:01:03]} Nf6 {[%emt 0:01:38] [#]} 11. Qd3 $146 {[%emt 0:02:27]} ({Predecessor:} 11. h3 Qa3 12. g4 Qb2 13. Rc1 Qxa2 14. Qe3 Nbd7 15. Bd3 Nb6 16. Qe2 O-O 17. Bh6 Qxe2+ 18. Kxe2 {1-0 (42) Abdel Razik,K (2430)-Ahmed,A (2187) Cairo 2015}) 11... Nbd7 {[%emt 0:02:29][%cal Ob7b5]} 12. Nf3 {[%emt 0:02:56]} Nb6 {[%emt 0:02:52]} (12... Nh5 $14) 13. Be2 $18 {[%emt 0:00:23] Hoping for 0-0.} Bd7 $2 {[%emt 0:35:54]} (13... Nh5 $16 {keeps fighting.}) 14. O-O {[%emt 0:04:20]} O-O-O {[%emt 0:18:40]} 15. Bg5 {[%emt 0:04:07]} (15. Nxe5 dxe5 16. Rxf6 Rdf8) 15... Rdf8 {[%emt 0:00:28] [#]} (15... Nh5 {might work better.} 16. Bxd8 Rxd8) 16. Bh6 {[%emt 0:00:34]} (16. Nxe5 $142 $1 {[%mdl 512]} Nxe4 (16... dxe5 17. Bxf6) 17. Rxf8+ (17. Qxe4 Re8 $18) 17... Rxf8 18. Nxd7 (18. Qxe4 Re8 $16) 18... Nxd7 19. Qxe4 Qxc3 20. Rd1) 16... Nh5 {[%emt 0:03:49][%cal Bf6h5,Bh5f4,Bf4e2,Be2c3][%mdl 32]} 17. Bxf8 {[%emt 0:00:51]} Nf4 {[%emt 0:00:04] [#]} 18. Qe3 {[%emt 0:00:47]} Rxf8 {[%emt 0:00:06]} 19. Nd2 $2 {[%emt 0:03:27][%mdl 8192]} (19. Kh1 $16 {keeps the pressure on.}) 19... Qxc3 $1 $19 {[%emt 0:01:30][%mdl 64] Deflection, Decoy} 20. Qxc3 {[%emt 0:04:08]} (20. Bd3 $142 Rd8 21. Rab1 Qxd3 22. Qxd3 Nxd3 23. Rf7) 20... Nxe2+ {[%emt 0:00:37]} 21. Kh1 {[%emt 0:00:04]} Rxf1+ {[%emt 0:00:07]} ({Don't take} 21... Nxc3 22. Rxf8+ Kc7 23. Rf7 $18) 22. Rxf1 {[%emt 0:00:04]} Nxc3 {[%emt 0:00:05]} 23. a3 {[%emt 0:01:03]} Be8 {[%emt 0:05:22]} 24. Kg1 {[%emt 0:01:30]} Ne2+ {[%emt 0:03:42]} 25. Kf2 {[%emt 0:00:05]} Nd4 {[%emt 0:00:28]} 26. Kg3 {[%emt 0:00:55]} Kd8 {[%emt 0:01:47]} 27. Rf8 {[%emt 0:00:51]} Nd7 {[%emt 0:04:56]} 28. Rh8 {[%emt 0:00:57]} (28. Rf1 $142) 28... Nf6 {[%emt 0:00:36]} 29. Kh4 {[%emt 0:00:27]} Ke7 {[%emt 0:02:29]} 30. Kg5 {[%emt 0:00:04]} Kf7 {[%emt 0:02:03]} 31. Kh6 {[%emt 0:00:04]} a6 {[%emt 0:02:49] ...b5 is the strong threat.} 32. h3 {[%emt 0:00:04]} (32. a4 $142) 32... b5 {[%emt 0:01:09]} 33. g4 {[%emt 0:00:47]} g5 {[%emt 0:01:05]} 34. h4 {[%emt 0:00:05]} Nxg4+ {[%emt 0:00:16]} 35. Kxg5 {[%emt 0:00:04]} Nf6 {[%emt 0:00:14]} 36. Kh6 {[%emt 0:00:05]} b4 {[%emt 0:01:12]} 37. axb4 {[%emt 0:00:04]} cxb4 {[%emt 0:00:05]} 38. c5 {[%emt 0:00:14]} dxc5 {[%emt 0:00:48]} 39. Nc4 {[%emt 0:00:05]} Nf3 {[%emt 0:01:23]} 40. Nd6+ {[%emt 0:00:00]} Ke7 {[%emt 0:00:00]} 41. Nf5+ {[%emt 0:00:00]} Kd7 {[%emt 0:00:00] And now ...b3 would win.} 42. Kg7 {[%emt 0:00:00]} b3 $2 {[%emt 0:00:00]} 43. Kxf6 $11 {[%emt 0:00:00][%mdl 4096] Endgame KRN-KBN. The position is equal.} b2 {[%emt 0:00:00]} 44. Rxh7+ {[%emt 0:00:00]} Kd8 {[%emt 0:00:00]} (44... Kc8 $5 45. Nd6+ Kd8 $11) 45. Rb7 {[%emt 0:00:00]} Bb5 {[%emt 0:00:00]} 46. Nd6 $1 {[%emt 0:00:00]} b1=Q {[%emt 0:00:00]} 47. Nf7+ {[%emt 0:00:00]} Kc8 {[%emt 0:00:00]} 48. Nd6+ {[%emt 0:00:00]} Kd8 {[%emt 0:00:00] Whites escaped into a draw.  Weighted Error Value: White=0.81/Black=0.28 (precise)} 1/2-1/2

[Event "2nd Bieszczady Chess-ch A 2022"]
[Site "Bystre"]
[Date "2022.07.24"]
[Round "9.8"]
[White "Maksimenko, Andrei Jr"]
[Black "Bugajski, Robert"]
[Result "1-0"]
[ECO "C00"]
[WhiteElo "1897"]
[BlackElo "2075"]
[Annotator "TA"]
[PlyCount "114"]
[EventDate "2022.07.17"]
[EventCountry "POL"]
[SourceTitle "playchess.com"]
[Source "ChessBase"]
[SourceQuality "1"]
[TimeControl "5400+30"]

{[%evp 10,114,-13,-10,0,0,0,0,41,29,76,64,68,71,60,57,106,108,128,121,141,132,165,163,189,163,160,147,154,147,173,170,162,164,162,167,170,147,187,180,168,175,168,168,241,247,239,234,256,235,253,232,232,231,209,212,213,175,169,177,340,336,327,289,279,237,287,256,401,359,393,391,390,380,360,339,355,316,577,570,560,548,514,490,772,685,2368,2106,4626,3639,4637,4132,2571,2250,7731,5737,29969,29964,29977,29976,29978,29979,29978,29980,29977,29978,6633]} 1. e4 {[%emt 0:01:51]} e6 {[%emt 0:00:13]} 2. d4 {[%emt 0:00:35]} d5 {[%emt 0:00:14]} 3. Bd3 {[%emt 0:00:06][%cal Bf1d3,Bd3e4,Be4f3][%mdl 32]} dxe4 {[%emt 0:00:56]} 4. Bxe4 {[%emt 0:00:06]} Nf6 {[%emt 0:00:10]} 5. Bf3 {[%emt 0:00:05]} c5 {[%emt 0:00:34]} 6. Ne2 {[%emt 0:02:09]} Nc6 {[%emt 0:00:26] C01: French: Exchange Variation.} 7. Be3 {[%emt 0:06:59]} cxd4 {[%emt 0:06:38]} 8. Nxd4 {[%emt 0:01:19]} Nxd4 {[%emt 0:08:56] The position is equal.} 9. Qxd4 {[%emt 0:01:38]} Qxd4 {[%emt 0:07:43]} (9... Qa5+ $11 10. Nc3 e5) 10. Bxd4 $16 {[%emt 0:00:02]} Bd6 {[%emt 0:00:37]} 11. Nd2 {[%emt 0:05:34][%cal Bb1d2,Bd2c4,Bc4d6][%mdl 32]} O-O {[%emt 0:01:58]} 12. O-O-O {[%emt 0:08:01] [#]} Re8 $146 {[%emt 0:09:00]} (12... Rb8 $14 {is superior.}) ({Predecessor:} 12... Rd8 13. Kb1 e5 14. Bc3 Be6 15. Bxb7 Rab8 16. Bf3 Nd5 17. Ba5 Rdc8 18. Nb3 Rb5 19. a4 {1-0 (19) Wen,Y (2608)-Nguyen,V (2335) Hanoi 2018}) 13. Rhe1 {[%emt 0:07:46]} Bc7 {[%emt 0:03:25]} 14. Nc4 {[%emt 0:01:46] Against e5} Nd7 {[%emt 0:10:17]} 15. g3 {[%emt 0:18:22]} Kf8 {[%emt 0:02:56]} 16. Bc3 {[%emt 0:01:50]} Rb8 {[%emt 0:13:59]} 17. Bb4+ {[%emt 0:01:06]} Kg8 {[%emt 0:00:11]} 18. Bd6 {[%emt 0:05:16] 0x0.001681657c66dp-1022s more active pieces. The black rooks are badly placed.} Bxd6 {[%emt 0:01:20]} 19. Nxd6 {[%emt 0:00:03]} Re7 {[%emt 0:02:00]} 20. Nxc8 {[%emt 0:01:50]} Rxc8 {[%emt 0:00:11]} 21. Bxb7 {[%emt 0:00:16]} Rb8 {[%emt 0:01:19]} 22. Bc6 $36 {[%emt 0:03:38][%mdl 2048] Black is under strong pressure.} Nb6 {[%emt 0:00:15]} 23. Rd4 {[%emt 0:03:00]} g6 {[%emt 0:02:24]} 24. Red1 {[%emt 0:00:43]} Kg7 {[%emt 0:00:16]} 25. Rd8 {[%emt 0:00:35]} Rxd8 {[%emt 0:00:10]} 26. Rxd8 $18 {[%emt 0:00:02][%mdl 4096] Endgame KRB-KRN} e5 {[%emt 0:00:50]} (26... Kf6 $142 27. b3 Rc7) 27. b3 {[%emt 0:01:33][%cal Bb2b3,Bb3b4][%mdl 32]} Rc7 {[%emt 0:02:03]} 28. Bb5 {[%emt 0:01:20]} Nc8 {[%emt 0:00:26]} 29. c4 {[%emt 0:03:18][%cal Bc2c4,Bc4c5][%mdl 32]} Kf6 {[%emt 0:02:19]} 30. b4 {[%emt 0:05:50]} Ke7 {[%emt 0:01:06]} 31. Re8+ {[%emt 0:02:08]} Kf6 {[%emt 0:00:03]} 32. c5 {[%emt 0:01:41]} Nd6 {[%emt 0:00:21]} 33. Rb8 {[%emt 0:00:30]} Nxb5 {[%emt 0:00:55]} 34. Rxb5 {[%emt 0:00:02] aiming for Kd2. KR-KR} Ke6 $2 {[%emt 0:00:14]} (34... Kf5 35. Kd2 Ke4) 35. Kc2 {[%emt 0:00:45]} Kd5 {[%emt 0:00:34]} 36. Kd3 {[%emt 0:03:56]} Rc6 {[%emt 0:01:08]} 37. a4 {[%emt 0:02:20]} Rf6 {[%emt 0:02:33]} 38. Ke2 {[%emt 0:02:37] And now Rb7 would win.} e4 {[%emt 0:04:04]} (38... Rc6 $142 39. Rb7 a5) 39. Ra5 {[%emt 0:02:44]} Kc4 {[%emt 0:02:45]} 40. b5 {[%emt 0:00:00]} Kxc5 {[%emt 0:00:00]} 41. Rxa7 {[%emt 0:00:00]} Rf3 {[%emt 0:00:00]} 42. Re7 {[%emt 0:00:00]} f5 {[%emt 0:00:00]} 43. Rxh7 {[%emt 0:00:00]} g5 $2 {[%emt 0:00:00]} (43... Ra3 {keeps fighting.} 44. Rg7 Ra2+ 45. Kf1 Rxa4 46. Rxg6 Ra1+ 47. Kg2 Kd5) 44. h4 {[%emt 0:00:00]} gxh4 {[%emt 0:01:46]} 45. Rxh4 {[%emt 0:00:00] [#] Black must now prevent Rf4.} Ra3 {[%emt 0:00:36]} 46. Rf4 {[%emt 0:00:00]} Kd4 {[%emt 0:00:20]} (46... Ra2+ $142 47. Kf1 Ra1+ 48. Kg2 Kd5 49. Rxf5+ Ke6) 47. Rxf5 {[%emt 0:00:00] Strongly threatening g4.} Ra2+ {[%emt 0:00:13]} 48. Kf1 {[%emt 0:00:00][%cal Oa4a5] a5! is the strong threat.} Rxa4 {[%emt 0:00:22]} 49. Kg2 {[%emt 0:00:00]} Ra2 {[%emt 0:00:30]} 50. Kh3 {[%emt 0:00:00]} Ra3 {[%emt 0:03:32]} 51. Kh4 {[%emt 0:00:16] [#] Hoping for g4.} e3 {[%emt 0:05:22]} 52. fxe3+ {[%emt 0:00:35]} Rxe3 {[%emt 0:00:14]} 53. g4 {[%emt 0:00:28] White mates.} Ke4 {[%emt 0:00:47]} 54. Kg5 {[%emt 0:00:57]} Rd3 {[%emt 0:00:39]} 55. b6 {[%emt 0:03:24]} Rb3 {[%emt 0:01:29]} 56. Rf6 {[%emt 0:00:07]} Ke5 {[%emt 0:00:03]} 57. Kg6 {[%emt 0:00:12]} Kd5 {Black did not feel at home in the position after the opening.  Weighted Error Value: White=0.08 (flawless) /Black=0.30} 1-0